bitfinex/quotes_SOLUSD_20241122
["timestamp","ask_amount","ask_price","bid_price","bid_amount"]
[1732261036749,31.4654,259.96,259.81,3.831]
[1732261036964,44.7557,259.93,259.77,3.831]
[1732261037145,9.56956958,259.92,259.77,3.831]
[1732261037349,44.7557,259.93,259.74,5.86380492]
[1732261037674,44.7557,259.93,259.73,5.86380492]
[1732261037850,31.4654,259.92,259.74,3.831]
[1732261038054,31.4654,259.92,259.73,3.831]
[1732261038257,31.4654,259.92,259.73,9.69480492]
[1732261038562,31.4654,259.92,259.73,3.831]
[1732261038939,31.4654,259.92,259.77,3.831]
[1732261040664,31.4654,259.92,259.77,23.831]
[1732261040852,13.2903,259.91,259.77,23.831]
[1732261041055,13.2903,259.91,259.77,3.831]
[1732261041248,13.2903,259.91,259.76,3.831]
[1732261041761,13.2903,259.91,259.76,23.776884]
[1732261041955,13.2903,259.91,259.77,20.0]
[1732261042151,9.56956958,259.9,259.77,20.0]
[1732261042349,13.2903,259.91,259.73,20.0]
[1732261042679,13.2903,259.91,259.75,20.0]
[1732261043048,41.03496958,259.9,259.7,20.0]
[1732261043263,44.7557,259.89,259.72,20.0]
[1732261043548,44.7557,259.89,259.73,3.831]
[1732261043967,44.7557,259.89,259.77,20.0]
[1732261044770,44.7557,259.89,259.77,23.831]
[1732261044981,44.7557,259.89,259.82,23.776884]
[1732261045170,44.7557,259.89,259.83,20.0]
[1732261045563,44.7557,259.89,259.84,3.831]
[1732261045964,13.2903,259.95,259.94,155.1]
[1732261046158,13.2903,259.95,259.94,20.0]
[1732261046561,13.2903,259.95,259.88,23.831]
[1732261046867,13.2903,259.95,259.77,31.4393]
[1732261046868,2.5,260.16,259.9,20.0]
[1732261047054,9.56956958,260.06,259.9,20.0]
[1732261047699,9.56956958,260.04,259.9,20.0]
[1732261047887,9.56956958,260.04,259.85,23.776884]
[1732261048051,9.56956958,260.04,259.86,20.0]
[1732261048258,13.058,260.05,259.88,20.0]
[1732261048462,13.058,260.05,259.9,20.0]
[1732261048656,13.058,260.05,259.9,23.831]
[1732261048964,31.9717,260.04,259.9,23.831]
[1732261049675,31.9717,260.04,259.9,20.0]
[1732261052460,31.9717,260.04,259.95,23.776884]
[1732261052659,31.9717,260.04,259.96,20.0]
[1732261055661,31.9717,260.04,259.95,20.0]
[1732261055880,31.9717,260.04,259.86,20.0]
[1732261056076,31.9717,260.04,259.88,20.0]
[1732261056460,31.9717,260.04,259.9,20.0]
[1732261056666,31.9717,260.04,259.91,23.776884]
[1732261056871,31.9717,260.04,259.93,23.776884]
[1732261057065,31.9717,260.04,259.94,20.0]
[1732261057483,31.9717,260.04,259.84,27.607884]
[1732261058588,31.9717,260.04,259.85,20.0]
[1732261058765,31.9717,260.04,259.87,20.0]
[1732261058966,31.9717,260.04,259.89,20.0]
[1732261059391,31.9717,260.04,259.9,23.776884]
[1732261059575,31.9717,260.04,259.94,3.831]
[1732261059774,31.9717,260.04,259.96,20.0]
[1732261059982,31.9717,260.04,259.98,20.0]
[1732261062587,31.9717,260.04,259.98,25.99648334]
[1732261066774,31.9717,260.04,260.0,20.0]
[1732261067875,31.9717,260.04,259.99,20.0]
[1732261068690,31.9717,260.04,259.88,20.0]
[1732261068895,31.9717,260.04,259.9,23.831]
[1732261069069,31.9717,260.04,259.93,23.776884]
[1732261069270,31.9717,260.04,259.94,20.0]
[1732261069589,31.9717,260.04,259.96,20.0]
[1732261069974,9.56956958,260.0,259.87,6.24057206]
[1732261070173,9.56956958,260.0,259.79,35.64974299]
[1732261070174,33.2637,260.01,259.79,5.94162383]
[1732261070375,33.2637,260.01,259.8,5.94162383]
[1732261070782,33.2637,260.01,259.81,5.94162383]
[1732261070978,33.2637,260.01,259.8,3.831]
[1732261071277,33.2637,260.01,259.8,23.831]
[1732261071682,33.2637,260.01,259.8,3.831]
[1732261071885,33.2637,260.01,259.82,3.831]
[1732261072089,33.2637,260.01,259.79,20.0]
[1732261072090,9.56956958,260.0,259.86,3.831]
[1732261072766,9.56956958,260.0,259.77,6.29001438]
[1732261072767,9.56956958,259.93,259.77,6.29001438]
[1732261072992,9.56956958,259.86,259.74,5.94162383]
[1732261073178,9.56956958,259.86,259.65,5.94162383]
[1732261073778,9.56956958,259.86,259.63,11.88324766]
[1732261073779,9.56956958,259.86,259.63,3.831]
[1732261074394,9.56956958,259.86,259.65,3.831]
[1732261074704,21.75746958,259.88,259.65,3.831]
[1732261074876,12.1879,259.88,259.65,23.831]
[1732261075303,12.1879,259.88,259.65,29.77262383]
[1732261075595,12.1879,259.88,259.65,23.831]
[1732261075784,12.1879,259.88,259.67,3.831]
[1732261076296,12.1879,259.88,259.71,3.831]
[1732261076496,12.1879,259.88,259.73,23.831]
[1732261076797,12.1879,259.88,259.63,6.08903077]
[1732261076798,12.1879,259.88,259.76,3.831]
[1732261077981,12.1879,259.88,259.75,20.0]
[1732261077982,12.1879,259.88,259.79,3.831]
[1732261078172,12.1879,259.88,259.82,3.831]
[1732261082197,12.1879,259.88,259.73,23.776884]
[1732261082493,12.1879,259.88,259.76,3.831]
[1732261082719,12.1879,259.88,259.78,3.831]
[1732261083191,12.1879,259.88,259.8,3.831]
[1732261083377,12.1879,259.88,259.8,23.831]
[1732261083582,12.1879,259.88,259.8,3.831]
[1732261084205,12.1879,259.88,259.77,3.831]
[1732261084994,12.1879,259.88,259.79,23.831]
[1732261085701,12.1879,259.88,259.79,3.831]
[1732261086201,12.1879,259.88,259.77,23.831]
[1732261086583,12.1879,259.88,259.79,23.831]
[1732261087098,12.1879,259.88,259.79,3.831]
[1732261087515,12.1879,259.88,259.75,3.831]
[1732261087684,12.1879,259.88,259.77,23.831]
[1732261087885,12.1879,259.88,259.74,20.0]
[1732261087886,12.1879,259.88,259.79,23.831]
[1732261088084,12.1879,259.88,259.81,20.0]
[1732261088294,12.1879,259.88,259.81,23.831]
[1732261088685,12.1879,259.88,259.81,3.831]
[1732261089213,12.1879,259.88,259.75,3.831]
[1732261089380,33.2637,259.89,259.79,23.831]
[1732261089580,12.2999,259.94,259.81,23.831]
[1732261089787,12.2999,259.94,259.83,3.831]
[1732261089990,12.2999,259.94,259.83,23.831]
[1732261090191,12.2999,259.94,259.83,3.831]
[1732261090909,12.2999,259.94,259.78,3.831]
[1732261091407,12.2999,259.94,259.8,3.831]
[1732261091780,12.2999,259.94,259.84,3.831]
[1732261092801,12.2999,259.94,259.78,3.831]
[1732261093391,12.2999,259.94,259.8,3.831]
[1732261094114,12.2999,259.94,259.84,3.831]
[1732261095298,12.2999,259.94,259.75,20.0]
[1732261095299,12.2999,259.94,259.78,3.831]
[1732261095495,12.2999,259.94,259.77,23.776884]
[1732261095496,12.2999,259.94,259.82,23.831]
[1732261096198,12.2999,259.94,259.82,3.831]
[1732261096610,12.2999,259.94,259.78,23.831]
[1732261096784,12.2999,259.94,259.8,23.831]
[1732261096990,12.2999,259.94,259.82,3.831]
[1732261097305,12.2999,259.94,259.84,3.831]
[1732261098306,12.2999,259.94,259.78,23.831]
[1732261098491,12.2999,259.94,259.8,3.831]
[1732261098692,12.2999,259.94,259.84,23.831]
[1732261099108,21.88318687,259.94,259.71,38.25762383]
[1732261099305,21.88318687,259.94,259.71,32.316]
[1732261100191,21.88318687,259.94,259.72,3.831]
[1732261100607,21.88318687,259.94,259.74,3.831]
[1732261101109,21.88318687,259.94,259.76,23.831]
[1732261101490,21.88318687,259.94,259.78,23.831]
[1732261102206,21.88318687,259.94,259.78,3.831]
[1732261102709,21.88318687,259.94,259.74,20.0]
[1732261102710,21.88318687,259.94,259.77,3.831]
[1732261104328,12.2999,259.94,259.79,3.831]
[1732261104617,12.2999,259.94,259.81,20.0]
[1732261104790,12.2999,259.94,259.82,3.831]
[1732261106408,12.2999,259.94,259.84,23.831]
[1732261106721,12.2999,259.94,259.84,3.831]
[1732261110226,12.2999,259.94,259.82,9.9133037]
[1732261110405,9.58328687,259.93,259.82,3.831]
[1732261111202,12.2999,259.94,259.82,3.831]
[1732261111389,12.2999,259.94,259.72,23.831]
[1732261111594,12.2999,259.94,259.76,23.831]
[1732261111816,12.2999,259.94,259.78,3.831]
[1732261112904,12.2999,259.94,259.75,3.831]
[1732261113114,12.2999,259.94,259.79,3.831]
[1732261114311,12.2999,259.94,259.77,23.831]
[1732261114507,12.2999,259.94,259.79,3.831]
[1732261115505,21.88318687,259.94,259.8,3.831]
[1732261116623,21.88318687,259.94,259.81,3.831]
[1732261117503,21.88318687,259.94,259.76,23.776884]
[1732261117710,21.88318687,259.94,259.79,3.831]
[1732261118019,12.2999,259.94,259.81,3.831]
[1732261118192,12.2999,259.94,259.83,3.831]
[1732261119310,12.2999,259.94,259.79,23.831]
[1732261119619,12.2999,259.94,259.81,3.831]
[1732261120121,12.2999,259.94,259.83,23.831]
[1732261120631,9.58328687,260.13,259.87,20.0]
[1732261120806,9.58328687,260.04,259.89,20.0]
[1732261121420,9.58328687,260.06,259.89,20.0]
[1732261121714,9.58328687,260.06,259.9,3.831]
[1732261122218,5.0,260.15,259.9,3.831]
[1732261122219,23.776884,260.14,259.9,3.831]
[1732261122513,9.58328687,260.06,259.9,3.831]
[1732261123522,42.5367,260.05,259.9,3.831]
[1732261127016,9.58328687,260.04,259.89,20.0]
[1732261128330,42.5367,260.05,259.89,20.0]
[1732261128619,42.5367,260.05,259.91,20.0]
[1732261128933,42.5367,260.05,259.95,20.0]
[1732261128934,41.20311518,260.05,259.95,20.0]
[1732261129817,2.5,260.22,259.97,20.0]
[1732261130120,30.2225,260.21,259.97,20.0]
[1732261130320,9.58328687,260.14,259.97,20.0]
[1732261130523,9.58328687,260.14,259.98,3.831]
[1732261130701,30.2225,260.21,259.98,23.776884]
[1732261130907,9.58328687,260.18,260.01,20.0]
[1732261131108,9.58328687,260.18,260.02,3.831]
[1732261131306,30.2225,260.21,260.04,20.0]
[1732261131523,30.2225,260.21,260.05,23.776884]
[1732261131828,30.2225,260.21,259.94,38.86171676]
[1732261131829,30.2225,260.21,260.1,20.0]
[1732261132037,30.2225,260.21,260.1,23.831]
[1732261133725,30.2225,260.21,260.1,20.0]
[1732261135623,14.94513606,260.2,260.06,20.0]
[1732261136005,14.94513606,260.2,260.01,20.0]
[1732261137407,14.94513606,260.2,260.0,34.1183]
[1732261138133,30.2225,260.21,260.01,23.776884]
[1732261138423,30.2225,260.21,260.05,23.776884]
[1732261138610,30.2225,260.21,260.07,23.776884]
[1732261138932,30.2225,260.21,260.08,20.0]
[1732261139626,30.2225,260.27,260.11,20.0]
[1732261139817,30.2225,260.27,260.12,3.831]
[1732261140906,23.776884,260.26,260.12,3.831]
[1732261141314,38.72202006,260.26,260.05,3.831]
[1732261141508,38.72202006,260.26,260.05,23.831]
[1732261143539,23.776884,260.23,260.05,23.831]
[1732261144211,14.94513606,260.2,260.05,23.831]
[1732261144430,23.776884,260.15,260.01,6.1302272]
[1732261144935,30.2225,260.18,259.98,30.2873]
[1732261144936,23.776884,260.17,259.98,30.2873]
[1732261145513,23.776884,260.17,259.98,34.1183]
[1732261146117,23.776884,260.17,260.0,20.0]
[1732261147127,23.776884,260.17,259.98,36.54533925]
[1732261147325,14.94513606,260.11,259.98,6.25803925]
[1732261147520,14.94513606,260.11,259.92,45.9971]
[1732261147521,23.776884,260.1,259.92,45.9971]
[1732261148247,14.94513606,260.09,259.92,45.9971]
[1732261148420,23.776884,260.08,259.92,45.9971]
[1732261149022,23.776884,260.08,259.92,52.14214486]
[1732261149336,36.236684,260.06,259.92,6.14504486]
[1732261149518,36.236684,260.06,259.86,46.2226]
[1732261149723,23.776884,260.04,259.86,46.2226]
[1732261150038,23.776884,260.02,259.86,32.9777]
[1732261150938,23.776884,260.0,259.84,6.12908371]
[1732261151139,23.776884,259.98,259.8,46.2226]
[1732261151639,27.40493606,260.06,259.81,0.57714924]
[1732261151814,14.94513606,260.02,259.8,52.47077848]
[1732261152425,12.4598,260.06,259.81,23.776884]
[1732261152834,12.4598,260.06,259.81,29.99604398]
[1732261153020,12.4598,260.06,259.82,3.71915998]
[1732261153224,12.4598,260.06,259.81,26.276884]
[1732261153425,12.4598,260.06,259.81,28.776884]
[1732261153722,12.4598,260.06,259.82,20.0]
[1732261154123,5.98985088,260.37,259.81,28.776884]
[1732261154124,12.2447,260.12,259.88,20.0]
[1732261154332,12.2447,260.12,259.93,23.776884]
[1732261154536,12.2447,260.12,259.96,20.0]
[1732261155037,12.2447,260.18,260.0,20.0]
[1732261155432,12.2447,260.18,260.01,23.776884]
[1732261155633,12.2447,260.18,260.02,20.0]
[1732261155828,12.2447,260.18,260.03,23.776884]
[1732261156036,12.2447,260.18,260.06,20.0]
[1732261156637,12.2447,260.18,260.04,20.0]
[1732261156818,12.2447,260.18,260.06,20.0]
[1732261157751,31.3877,260.19,260.09,23.776884]
[1732261157920,43.6324,260.25,260.11,23.776884]
[1732261158246,43.6324,260.25,260.12,20.0]
[1732261158422,43.6324,260.25,260.15,23.776884]
[1732261158624,43.6324,260.25,260.16,20.0]
[1732261159227,43.6324,260.25,260.1,20.0]
[1732261159532,43.6324,260.25,260.12,20.0]
[1732261164630,43.6324,260.25,260.09,36.35446195]
[1732261164631,14.94513606,260.19,260.09,6.21466195]
[1732261164832,14.94513606,260.19,260.02,30.1398]
[1732261165031,14.94513606,260.21,260.02,30.1398]
[1732261165452,14.94513606,260.23,260.02,30.1398]
[1732261165638,58.57753606,260.25,260.02,30.1398]
[1732261166156,58.57753606,260.25,260.03,23.776884]
[1732261166746,58.57753606,260.25,260.04,20.0]
[1732261166936,14.94513606,260.23,260.07,23.776884]
[1732261167131,14.94513606,260.23,260.08,20.0]
[1732261167559,14.94513606,260.19,260.08,20.0]
[1732261167795,14.94513606,260.19,260.02,36.20039677]
[1732261169250,14.94513606,260.17,260.02,30.1398]
[1732261170951,14.94513606,260.17,260.03,20.0]
[1732261178964,14.94513606,260.19,260.03,20.0]
[1732261179774,14.94513606,260.21,260.03,20.0]
[1732261181863,14.94513606,260.19,259.93,44.84845262]
[1732261182066,14.94513606,260.12,259.93,33.2627]
[1732261182270,14.94513606,260.14,259.93,33.2627]
[1732261182577,14.94513606,260.17,259.93,33.2627]
[1732261183570,23.776884,260.2,259.93,33.2627]
[1732261183571,14.94513606,260.15,259.94,43.776884]
[1732261183770,14.94513606,260.11,259.93,39.25111373]
[1732261184263,14.94513606,260.13,259.93,39.25111373]
[1732261185068,14.94513606,260.13,259.95,20.0]
[1732261185876,14.94513606,260.15,259.98,23.776884]
[1732261186069,14.94513606,260.15,259.99,20.0]
[1732261186981,14.94513606,260.19,260.02,46.0346]
[1732261187270,14.94513606,260.19,260.03,20.0]
[1732261189175,43.6324,260.25,260.02,46.0346]
[1732261189176,14.94513606,260.25,260.08,23.776884]
[1732261189360,14.94513606,260.25,260.07,20.0]
[1732261189361,14.94513606,260.25,260.09,20.0]
[1732261189678,14.94513606,260.23,260.09,20.0]
[1732261190054,14.94513606,260.23,260.03,20.0]
[1732261190257,14.94513606,260.21,260.05,20.0]
[1732261190462,14.94513606,260.17,260.05,20.0]
[1732261190974,14.94513606,260.19,260.03,20.0]
[1732261191185,14.94513606,260.21,260.03,20.0]
[1732261193685,14.94513606,260.19,260.03,20.0]
[1732261197683,14.94513606,260.17,260.03,20.0]
[1732261199179,14.94513606,260.19,260.03,20.0]
[1732261200884,9.56860888,260.18,260.03,20.0]
[1732261201560,9.56860888,260.16,260.03,20.0]
[1732261202174,9.56860888,260.18,260.03,20.0]
[1732261203879,49.993,260.31,260.05,20.0]
[1732261204060,9.56860888,260.21,260.07,20.0]
[1732261204261,49.993,260.31,260.07,20.0]
[1732261204466,9.56860888,260.21,260.07,20.0]
[1732261205469,9.56860888,260.19,260.03,20.0]
[1732261205769,9.56860888,260.17,260.03,20.0]
[1732261207485,9.56860888,260.11,260.02,46.0346]
[1732261207693,9.56860888,260.09,260.02,46.0346]
[1732261207865,9.56860888,260.11,260.02,46.0346]
[1732261209478,23.776884,260.23,260.02,46.0346]
[1732261209479,9.56860888,260.19,260.03,23.776884]
[1732261209788,9.56860888,260.19,260.03,20.0]
[1732261210088,9.56860888,260.17,260.03,20.0]
[1732261210390,51.27803552,260.26,260.03,20.0]
[1732261210391,9.56860888,260.19,260.03,20.0]
[1732261210566,9.56860888,260.17,260.03,20.0]
[1732261210770,51.27803552,260.26,260.03,20.0]
[1732261210771,14.9528189,260.15,260.03,20.0]
[1732261211489,14.9528189,260.13,260.03,20.0]
[1732261211662,14.9528189,260.09,260.02,46.0346]
[1732261212893,14.9528189,260.09,260.02,33.2627]
[1732261213090,14.9528189,260.09,259.95,13.2222]
[1732261213091,14.9528189,260.07,259.95,13.2222]
[1732261213469,14.9528189,260.05,259.95,13.2222]
[1732261214094,14.9528189,260.03,259.95,13.2222]
[1732261214471,14.9528189,260.01,259.9,3.834]
[1732261216073,14.9528189,260.01,259.9,34.1168]
[1732261216698,14.9528189,260.03,259.9,34.1168]
[1732261216894,14.9528189,260.03,259.91,23.834]
[1732261218575,14.9528189,260.01,259.91,23.834]
[1732261218782,14.9528189,259.97,259.9,30.2828]
[1732261220201,14.9528189,259.91,259.83,39.3523]
[1732261221280,14.9528189,259.91,259.84,20.0]
[1732261225578,14.9528189,259.87,259.79,20.0]
[1732261225996,14.9528189,259.89,259.79,20.0]
[1732261226189,14.9528189,259.91,259.78,12.889]
[1732261227084,14.9528189,259.93,259.78,12.889]
[1732261227488,14.9528189,259.93,259.79,20.0]
[1732261227796,14.9528189,259.95,259.79,20.0]
[1732261228298,14.9528189,259.93,259.79,20.0]
[1732261230901,12.5521,260.03,259.82,20.0]
[1732261230902,14.9528189,259.97,259.82,20.0]
[1732261231601,14.9528189,259.93,259.82,20.0]
[1732261233292,14.9528189,259.93,259.7,3.834]
[1732261233293,14.9528189,259.83,259.64,30.8205]
[1732261233498,14.9528189,259.85,259.64,30.8205]
[1732261234001,14.9528189,259.94,259.69,12.2064]
[1732261234195,23.776884,259.93,259.7,30.8205]
[1732261234504,14.9528189,259.94,259.74,20.0]
[1732261234700,14.9528189,259.9,259.74,20.0]
[1732261235206,14.9528189,259.9,259.73,20.0]
[1732261235699,14.9528189,259.9,259.75,20.0]
[1732261235904,23.776884,259.93,259.75,20.0]
[1732261236088,14.9528189,259.9,259.75,20.0]
[1732261237286,14.9528189,259.86,259.73,20.0]
[1732261237486,14.9528189,259.88,259.73,20.0]
[1732261238200,23.776884,259.93,259.73,20.0]
[1732261238201,14.9528189,259.86,259.73,20.0]
[1732261238499,14.9528189,259.86,259.72,30.8205]
[1732261239578,14.9528189,259.86,259.73,20.0]
[1732261240293,14.9528189,259.84,259.73,20.0]
[1732261241201,14.9528189,259.86,259.73,20.0]
[1732261241503,14.9528189,259.88,259.73,20.0]
[1732261243008,14.9528189,259.92,259.73,20.0]
[1732261243303,1.86531287,259.83,259.74,23.776884]
[1732261243605,1.86531287,259.83,259.75,20.0]
[1732261244392,1.86531287,259.83,259.77,20.0]
[1732261244586,1.86531287,259.83,259.79,20.0]
[1732261247893,1.86531287,259.83,259.8,23.776884]
[1732261248094,1.86531287,259.83,259.81,20.0]
[1732261248488,1.86531287,259.83,259.82,51.4196]
[1732261248890,14.9528189,260.0,259.83,43.776884]
[1732261249103,14.9528189,260.02,259.84,12.0684]
[1732261249600,14.9528189,260.02,259.86,20.0]
[1732261250220,14.9528189,260.02,259.85,43.776884]
[1732261250716,14.9528189,260.0,259.85,43.776884]
[1732261250921,23.776884,260.09,259.85,43.776884]
[1732261250922,14.9528189,259.98,259.85,20.0]
[1732261251295,14.9528189,259.96,259.85,20.0]
[1732261251796,14.9528189,259.98,259.85,20.0]
[1732261252539,14.9528189,259.86,259.74,31.4196]
[1732261252901,14.9528189,259.88,259.74,31.4196]
[1732261253820,14.9528189,259.86,259.74,31.4196]
[1732261254506,14.9528189,259.88,259.74,31.4196]
[1732261254905,14.9528189,259.88,259.75,20.0]
[1732261255209,33.1917,259.95,259.75,20.0]
[1732261255210,14.9528189,259.91,259.75,20.0]
[1732261257321,14.9528189,259.93,259.77,20.0]
[1732261257715,14.9528189,259.95,259.79,20.0]
[1732261258020,14.9528189,259.97,259.83,20.0]
[1732261259705,14.9528189,260.03,259.84,23.776884]
[1732261259913,14.9528189,260.01,259.85,20.0]
[1732261260319,14.9528189,260.01,259.82,31.4196]
[1732261260320,14.9528189,259.97,259.83,20.0]
[1732261260616,14.9528189,259.95,259.83,20.0]
[1732261261826,14.9528189,259.99,259.83,20.0]
[1732261262005,14.9528189,260.03,259.85,20.0]
[1732261263321,14.9528189,260.01,259.85,20.0]
[1732261270011,14.9528189,259.99,259.85,20.0]
[1732261270213,14.9528189,259.97,259.83,20.0]
[1732261270924,14.9528189,260.01,259.83,20.0]
[1732261271604,14.9528189,260.01,259.85,20.0]
[1732261272510,14.9528189,260.03,259.87,20.0]
[1732261272816,14.9528189,260.03,259.88,44.3466]
[1732261273226,14.9528189,260.03,259.89,20.0]
[1732261274923,14.9528189,260.05,259.89,20.0]
[1732261276807,14.9528189,260.13,259.89,20.0]
[1732261276808,14.9528189,260.07,259.89,20.0]
[1732261277026,14.9528189,260.07,259.91,20.0]
[1732261277219,14.9528189,260.09,259.95,20.0]
[1732261277424,14.9528189,260.11,259.97,20.0]
[1732261279333,14.9528189,260.11,260.0,20.0]
[1732261280226,14.9528189,260.13,260.0,20.0]
[1732261281809,14.9528189,260.15,260.0,20.0]
[1732261284335,14.9528189,260.15,260.0,26.04519831]
[1732261284638,14.9528189,260.16,260.04,20.0]
[1732261285536,14.9528189,260.18,260.04,20.0]
[1732261288023,14.9528189,260.18,260.06,20.0]
[1732261292534,14.9528189,260.16,260.06,20.0]
[1732261292847,9.56924899,260.16,260.06,20.0]
[1732261293134,9.56924899,260.11,260.05,12.5071]
[1732261294721,14.95797797,260.11,260.06,20.0]
[1732261295636,14.95797797,260.09,260.06,20.0]
[1732261296044,14.95797797,260.09,259.99,43.8686]
[1732261296045,14.95797797,260.09,260.0,20.0]
[1732261296745,14.95797797,260.11,260.0,20.0]
[1732261297050,14.95797797,260.09,259.99,43.8686]
[1732261297250,14.95797797,260.14,259.99,43.8686]
[1732261298127,14.95797797,260.14,260.0,20.0]
[1732261298323,14.95797797,260.12,260.0,20.0]
[1732261299845,14.95797797,260.14,260.0,20.0]
[1732261300926,14.95797797,260.12,260.0,20.0]
[1732261301734,14.95797797,260.1,260.0,20.0]
[1732261303025,14.95797797,260.08,259.99,43.8686]
[1732261303249,14.95797797,260.06,259.99,43.8686]
[1732261304137,14.95797797,260.08,259.99,43.8686]
[1732261305056,14.95797797,260.08,260.0,20.0]
[1732261305635,14.95797797,260.06,260.0,20.0]
[1732261305844,14.95797797,260.04,260.0,20.0]
[1732261306956,14.95797797,260.06,260.0,20.0]
[1732261307248,15.3751,260.15,260.0,20.0]
[1732261307249,14.95797797,260.08,260.0,20.0]
[1732261308648,14.95797797,260.08,259.92,13.2995]
[1732261308649,14.95797797,260.02,259.93,33.2819]
[1732261308833,14.95797797,259.98,259.93,33.2819]
[1732261309947,14.95797797,260.0,259.93,33.2819]
[1732261310661,14.95797797,260.0,259.94,20.0]
[1732261312367,14.95797797,260.02,259.94,20.0]
[1732261312544,14.95797797,260.04,259.94,20.0]
[1732261312746,14.95797797,260.06,259.94,20.0]
[1732261313341,14.95797797,260.08,259.94,20.0]
[1732261313961,14.95797797,260.08,259.96,20.0]
[1732261314857,14.95797797,260.06,259.96,20.0]
[1732261317563,14.95797797,260.04,259.96,20.0]
[1732261318267,14.95797797,259.98,259.93,33.2819]
[1732261318451,14.95797797,260.0,259.93,33.2819]
[1732261319362,14.95797797,260.02,259.94,20.0]
[1732261320443,155.15797797,260.13,259.94,20.0]
[1732261320444,14.95797797,260.04,259.94,20.0]
[1732261320874,14.95797797,260.06,259.94,20.0]
[1732261322166,14.95797797,260.04,259.94,20.0]
[1732261322954,14.95797797,260.02,259.94,20.0]
[1732261323156,26.276884,260.12,259.93,33.2819]
[1732261323157,14.95797797,260.0,259.93,33.2819]
[1732261324670,14.95797797,259.96,259.87,46.5814]
[1732261324862,14.95797797,259.94,259.87,46.5814]
[1732261325253,14.95797797,259.92,259.81,44.451]
[1732261325953,14.95797797,259.9,259.81,44.451]
[1732261326965,14.95797797,259.9,259.82,20.0]
[1732261328374,14.95797797,259.94,259.82,20.0]
[1732261328566,14.95797797,259.96,259.82,20.0]
[1732261328771,23.776884,260.04,259.82,20.0]
[1732261328968,23.776884,260.04,259.81,13.306]
[1732261328969,14.95797797,260.05,259.87,31.145]
[1732261329277,42.8423,260.11,259.87,31.145]
[1732261329278,14.95797797,260.01,259.88,20.0]
[1732261330254,14.95797797,259.99,259.88,20.0]
[1732261332465,14.95797797,259.99,259.88,20.0]
[1732261335069,14.95797797,259.97,259.88,20.0]
[1732261338981,14.95797797,259.93,259.87,31.145]
[1732261339767,14.95797797,259.91,259.81,45.3982]
[1732261339960,14.95797797,259.87,259.81,45.3982]
[1732261340170,14.95797797,259.87,259.81,32.0922]
[1732261340480,14.95797797,259.85,259.81,32.0922]
[1732261341675,14.95797797,259.87,259.76,20.0]
[1732261342665,32.8587,260.0,259.76,20.0]
[1732261342877,14.95797797,259.94,259.78,20.0]
[1732261343766,14.95797797,259.92,259.78,20.0]
[1732261344172,14.95797797,259.94,259.8,20.0]
[1732261346071,14.95797797,259.92,259.8,20.0]
[1732261349293,14.95797797,259.88,259.8,20.0]
[1732261349793,14.95797797,259.9,259.8,20.0]
[1732261350870,14.95797797,259.82,259.79,32.0922]
[1732261351269,14.95797797,259.82,259.75,12.064]
[1732261351270,14.95797797,259.84,259.75,12.064]
[1732261351469,14.95797797,259.86,259.75,12.064]
[1732261352284,5.0,259.97,259.75,12.064]
[1732261352285,14.95797797,259.84,259.75,12.064]
[1732261352705,14.95797797,259.82,259.74,20.0]